Cogmind - Beta 14 --- EXPLORER MODE // 2024.10.23 @ 12:03:34 Player: Fly Result: Destroyed by Y-45 Defender with Heavy Assault Rifle Performance ------------- Evolutions (2) 1000 Regions Visited (5) 1000 Robots Destroyed (69) 345 Value Destroyed (1992) 1992 Prototype IDs (2) 40 Alien Tech Used (0) 0 Bonus (194) 194 TOTAL SCORE: 4571 Bonus ------- High Alert Combat Kills 21 Follower Combat Kills 173 Cogmind --------- Core Integrity 0/550 Matter 169/300 Energy 160/160 System Corruption 2% Temperature Cool (9) Movement Core (2450) Ox48 Location -8/Storage Parts ------- > --- POWER (1) -------- Light Nuclear Core > --- PROPULSION (5) --- (None) > --- UTILITY (4) ------ Cargo Storage Unit ECM Suite > --- WEAPON (2) ------- (None) > --- INVENTORY (30) --- Ion Engine Light Ion Engine Light Ion Engine Improved Ion Engine Reinforced Ion Engine Light Angular Momentum Engine Improved Heat Sink Large Battery (200) Compact Battery (200) Light Armor Plating Peak State ------------ > --- POWER ------------ Reinforced Ion Engine > --- PROPULSION ------- Light Treads Improved Treads Aluminum Leg Improved Aluminum Leg Carbon-fiber Leg > --- UTILITY ---------- Cargo Storage Unit ECM Suite ECM Suite > --- WEAPON ----------- Assault Rifle Heavy Assault Rifle > --- INVENTORY -------- Ion Engine Light Ion Engine Light Ion Engine Reinforced Ion Engine Light Nuclear Core Light Angular Momentum Engine Light Treads Light Treads Aluminum Leg Aluminum Leg Improved Heat Sink Large Matter Pod Light Armor Plating Grenade Launcher Mining Laser [Rating: 20] Favorites ----------- Power Light Ion Engine Engine Light Ion Engine Power Core Light Nuclear Core Propulsion Aluminum Leg Treads Light Treads Leg Aluminum Leg Hover Unit Hover Unit Utility Cargo Storage Unit Device Seismic Detector Storage Cargo Storage Unit Protection Light Armor Plating Weapon Light Assault Rifle Energy Gun EM Pulse Gun Ballistic Gun Light Assault Rifle Ballistic Cannon Light Cannon Launcher Grenade Launcher Special Weapon Mining Laser Slashing Weapon Ripper Build | -11 -10 -10 -9 -8 -8 ------- Run | Yrd Mat Min Mat Mat Sto Slots Evolved 5 | . 1 . 2 2 . Power . | . . . . . . Propulsion 3 | . . . 1 2 . Utility 2 | . 1 . 1 . . Weapon . | . . . . . . Parts Attached 58 | 7 3 3 8 3 34 Power 8 | 1 . . 2 . 5 Engine 7 | 1 . . 2 . 4 Core 1 | . . . . . 1 Reactor . | . . . . . . Propulsion 28 | 2 . . 3 2 21 Treads 11 | . . . 2 . 9 Leg 15 | 2 . . 1 2 10 Wheel . | . . . . . . Hover 2 | . . . . . 2 Flight . | . . . . . . Utility 10 | 2 1 . 2 1 4 Device 5 | 1 1 . . 1 2 Storage 2 | 1 . . 1 . . Processor . | . . . . . . Hackware . | . . . . . . Protection 3 | . . . 1 . 2 Artifact . | . . . . . . Weapon 12 | 2 2 3 1 . 4 Energy Gun 1 | 1 . . . . . Energy Cannon . | . . . . . . Ballistic Gun 6 | 1 1 2 . . 2 Ballistic Cannon 1 | . . . 1 . . Launcher 2 | . 1 . . . 1 Special Weapon 1 | . . . . . 1 Impact Weapon . | . . . . . . Slashing Weapon 1 | . . 1 . . . Piercing Weapon . | . . . . . . Special Melee Weapon . | . . . . . . Unidentified Prototypes . | . . . . . . Parts Lost 23 | . . . 1 . 22 Power 2 | . . . . . 2 Propulsion 13 | . . . . . 13 Utility 4 | . . . 1 . 3 Weapon 4 | . . . . . 4 Highest Loss Streak 5 | . . . 1 . 5 To Critical Strikes . | . . . . . . Average Slot Usage (%) 83 | . 100 100 89 91 73 Engine 8 | . 12 12 10 8 7 Treads 10 | . . . 18 16 10 Leg 18 | . 25 25 11 25 18 Device 14 | . 25 25 10 16 13 Storage 9 | . 12 12 10 8 8 Protection 2 | . . . 8 . 1 Ballistic Gun 10 | . 13 21 12 8 6 Ballistic Cannon 4 | . . . 7 8 3 Launcher 1 | . 1 3 . . 2 Peak Build Rating 20 | 7 9 12 12 14 20 Average Rating 12 | 3 8 9 11 13 13 On Entrance 8 | . 7 9 9 11 14 Naked Turns . | . . . . . . Heaviest Build 159 | 17 20 20 151 149 159 Greatest Support 103 | 20 20 20 40 33 103 Greatest Overweight (x) 52 | 4 . . 4 4 52 Average Overweight (x) 2 | 1 . . 2 4 5 Largest Inventory Capacity 30 | 10 10 10 30 30 30 Average Capacity 25 | 9 10 10 29 30 30 Most Carried 20 | 10 10 10 11 10 20 Average Carried 10 | 6 8 9 9 8 11 Final Capacity 30 | 10 10 10 30 30 30 Final Carried 11 | 7 10 10 11 10 10 Class Distribution -------------------- 80% | Hauler-Mutant 19% | Hacker-Mutant Dominant Class ---------------- Hacker-Mutant | -10/Materials Hacker-Mutant | -10/Mines Hauler-Mutant | -9/Materials Hauler-Mutant | -8/Materials Hauler-Mutant | -8/Storage Resources | -11 -10 -10 -9 -8 -8 ----------- Run | Yrd Mat Min Mat Mat Sto Matter Collected 1768 | 199 73 206 206 . 1084 Remotely . | . . . . . . Salvage Created 2144 | . . 139 557 52 1396 Parts 124 | . . 7 34 3 80 Haulers Intercepted 3 | . . . 1 . 2 Recyclers Shooed 1 | . . . . . 1 Parts Field Recycled . | . . . . . . Retrieved Matter . | . . . . . . Parts Self-Destructed . | . . . . . . Prevented . | . . . . . . Kills | -11 -10 -10 -9 -8 -8 ------- Run | Yrd Mat Min Mat Mat Sto Combat Hostiles Destroyed 53 | . . 6 13 1 33 Guns 27 | . . 4 4 . 19 Cannons 17 | . . . 9 1 7 AOE 9 | . . 2 . . 7 Classes Destroyed 14 | . . 2 5 . 7 Worker 4 | . . . 1 . 3 Builder 1 | . . . . . 1 Hauler 3 | . . . 1 . 2 Recycler 3 | . . . 1 . 2 Mechanic 1 | . . . . . 1 Operator 1 | . . . . . 1 Watcher 3 | . . . 2 . 1 Swarmer 15 | . . 4 3 . 8 Grunt 24 | . . 2 7 . 15 Brawler 1 | . . . . . 1 Duelist 2 | . . . . . 2 Protector 1 | . . . . . 1 Sentry 9 | . . . 3 1 5 Hunter 1 | . . . . . 1 Best Kill Streak 6 | . . 4 5 1 6 Combat Bots Only 6 | . . 4 4 1 6 Max Kills in Single Turn 2 | . . 2 2 1 2 Gunslinging . | . . . . . . Exploded 2 | . . 2 . . 2 Melee . | . . . . . . Uniques/NPCs Destroyed . | . . . . . . Combat | -11 -10 -10 -9 -8 -8 -------- Run | Yrd Mat Min Mat Mat Sto Hostile Shots Fired 467 | . . 14 103 10 340 Missed 132 | . . 7 30 5 90 Damage Taken 3299 | . . 60 534 47 2658 Core 612 | . . 10 48 . 554 Absorbed by Shields . | . . . . . . Ignored by Resistances 2020 | . . 38 342 30 1610 Core Remaining (%) 94 | 100 . 96 88 . . Volleys Fired 160 | . 1 13 32 3 111 Largest 2 | . 2 2 2 2 2 Hottest 58 | . 50 50 55 55 58 Shots Fired 292 | . 2 21 64 6 199 Gun 184 | . 1 20 35 3 125 Cannon 88 | . . . 29 3 56 Launcher 20 | . 1 1 . . 18 Special . | . . . . . . Kinetic 272 | . 1 20 64 6 181 Thermal . | . . . . . . Explosive 20 | . 1 1 . . 18 Electromagnetic . | . . . . . . Robot Hit Streak 76 | . . 13 41 19 76 Robot Miss Streak 2 | . . 1 2 . 2 Penetration Max . | . . . . . . Secondary Targets . | . . . . . . Shots Hit Robots 251 | . . 15 55 6 175 Core Hits 130 | . . 8 30 3 89 Critical Kills . | . . . . . . Critical Parts Destroyed . | . . . . . . Critical Strikes 3 | . . . 1 . 2 Blast 3 | . . . 1 . 2 Melee Attacks . | . . . . . . Impact . | . . . . . . Slashing . | . . . . . . Piercing . | . . . . . . Sneak Attacks . | . . . . . . Combat Hostiles . | . . . . . . Follow-up Attacks . | . . . . . . Damage Inflicted 4469 | . . 230 719 70 3450 Guns 1949 | . . 141 255 22 1531 Cannons 1291 | . . . 460 48 783 Explosions 1171 | . . 85 . . 1086 Melee . | . . . . . . Ramming 58 | . . 4 4 . 50 Kinetic 3240 | . . 141 715 70 2314 Thermal . | . . . . . . Explosive 1171 | . . 85 . . 1086 Electromagnetic . | . . . . . . Impact . | . . . . . . Slashing . | . . . . . . Piercing . | . . . . . . Highest Corruption 2 | . . . . . 2 Average Corruption 2 | . . . . . 2 Corruption Purged . | . . . . . . Corruption Blocked . | . . . . . . Effects 16 | . . . . . 16 Message Errors 5 | . . . . . 5 Matter Fused 3 | . . . . . 3 Energy Discharges 3 | . . . . . 3 Data Loss (minor) 2 | . . . . . 2 Data Loss (major) 1 | . . . . . 1 Weapon Failures 2 | . . . . . 2 Overload Shots . | . . . . . . Overflow Damage 18 | . . . . . 18 Projectiles . | . . . . . . Explosions 12 | . . . . . 12 Melee 6 | . . . . . 6 Knockbacks 13 | . . . 3 . 10 Impact . | . . . . . . Kinetic 11 | . . . 3 . 8 Secondary 2 | . . . . . 2 Self-Inflicted Damage 229 | . . 24 . . 205 Shots 10 | . . 1 . . 9 Rammed 5 | . . . 1 . 4 Targets Rammed 8 | . . 1 1 . 6 Kicked 3 | . . 1 . . 2 Crushed . | . . . . . . Highest Temperature 49 | . . . 49 11 38 Average Temperature 11 | . . . 17 4 6 Received Heat Transfer 1956 | . . . 381 18 1557 Siege Activations . | . . . . . . Robots Corrupted . | . . . . . . Combat Hostiles . | . . . . . . Parts Fried . | . . . . . . Impact Corruptions 1 | . . . . . 1 Robots Melted . | . . . . . . Combat Hostiles . | . . . . . . Parts Melted . | . . . . . . Heat Transferred . | . . . . . . Parts Sabotaged . | . . . . . . Parts Stolen . | . . . . . . Parts Stripped . | . . . . . . Power Chain Reactions . | . . . . . . Alert | -11 -10 -10 -9 -8 -8 ------- Run | Yrd Mat Min Mat Mat Sto Peak Influence 441 | . 22 167 396 96 441 Initial 51 | . . 6 . 51 28 Average 119 | . 7 59 148 58 145 Maximum Alert Level 2 | . . . 1 . 2 Low Security (%) 76 | 100 100 100 84 100 59 Level 1 22 | . . . 15 . 37 Level 2 1 | . . . . . 2 Level 3 . | . . . . . . Level 4 . | . . . . . . Level 5 . | . . . . . . High Security . | . . . . . . Max Security . | . . . . . . Squads Dispatched 13 | . . . 1 . 12 Investigation 1 | . . . 1 . . Extermination . | . . . . . . Reinforcement 1 | . . . . . 1 Assault 2 | . . . . . 2 Garrison 9 | . . . . . 9 Intercept . | . . . . . . Searches Triggered . | . . . . . . Construction Impeded . | . . . . . . Haulers Reinforced . | . . . . . . Active Scanning Responses . | . . . . . . Cargo Convoy Interrupts . | . . . . . . Stealth | -11 -10 -10 -9 -8 -8 --------- Run | Yrd Mat Min Mat Mat Sto Distress Signals 4 | . . 1 . . 3 Communications Jammed . | . . . . . . Distress Signals . | . . . . . . Times Spotted 85 | . 1 6 22 1 55 Peak Tracking Total 6 | . 1 3 4 1 6 Tactical Retreats 7 | . 1 . . . 6 Traps | -11 -10 -10 -9 -8 -8 ------- Run | Yrd Mat Min Mat Mat Sto Traps Triggered 1 | . . . . . 1 Indirectly . | . . . . . . Trap Hack Attempts . | . . . . . . Triggered . | . . . . . . Disarmed . | . . . . . . Reprogrammed . | . . . . . . Reused . | . . . . . . Traps Extracted . | . . . . . . Installed . | . . . . . . Triggered . | . . . . . . Machines | -11 -10 -10 -9 -8 -8 ---------- Run | Yrd Mat Min Mat Mat Sto Machines Disabled 5 | . . . 1 . 4 Max in Single Turn 2 | . . . . . 2 Machines Repaired . | . . . . . . Machines Dismantled . | . . . . . . Machines Sabotaged . | . . . . . . Overloaded Fab Kills . | . . . . . . Hacking | -11 -10 -10 -9 -8 -8 --------- Run | Yrd Mat Min Mat Mat Sto Machines Accessed 8 | . 1 . 5 1 1 Terminals 8 | . 1 . 5 1 1 Fabricators . | . . . . . . Repair Stations . | . . . . . . Recycling Units . | . . . . . . Scanalyzers . | . . . . . . Garrison Access . | . . . . . . Total Hacks 26 | . 3 . 19 1 3 Successful 18 | . 1 . 14 1 2 Failed 8 | . 2 . 5 . 1 Catastrophic . | . . . . . . Database Lockouts . | . . . . . . Manual 2 | . . . . . 2 Terminals 26 | . 3 . 19 1 3 Fabricators . | . . . . . . Repair Stations . | . . . . . . Recycling Units . | . . . . . . Scanalyzers . | . . . . . . Garrison Access . | . . . . . . Terminal Hacks 18 | . 1 . 14 1 2 Record 5 | . . . 5 . . Prototype ID Bank 1 | . . . 1 . . Branch Access Points 1 | . . . . 1 . Emergency Access Points 1 | . . . 1 . . Alert Level 2 | . . . 2 . . Locate Traps 2 | . . . 1 . 1 Dispatch Records 1 | . . . 1 . . Patrol Status 3 | . . . 2 . 1 Investigation Status 1 | . . . 1 . . Zone Layout 1 | . 1 . . . . Fabricator Hacks . | . . . . . . Repair Station Hacks . | . . . . . . Recycling Unit Hacks . | . . . . . . Scanalyzer . | . . . . . . Garrison Access Hacks . | . . . . . . Unauthorized Hacks . | . . . . . . Terminals . | . . . . . . Fabricators . | . . . . . . Repair Stations . | . . . . . . Recycling Units . | . . . . . . Scanalyzers . | . . . . . . Garrison Access . | . . . . . . Data Cores Recovered . | . . . . . . Used . | . . . . . . Hacking Detections 6 | . 1 . 4 . 1 Full Trace Events 1 | . . . 1 . . Feedback Events . | . . . . . . Feedback Blocked . | . . . . . . Robot Schematics Acquired . | . . . . . . Robots Built . | . . . . . . Authchips . | . . . . . . Time . | . . . . . . Total Robot Build Rating . | . . . . . . Part Schematics Acquired . | . . . . . . Parts Built . | . . . . . . Authchips . | . . . . . . Time . | . . . . . . Total Part Build Rating . | . . . . . . Parts Repaired . | . . . . . . Time . | . . . . . . Parts Recycled . | . . . . . . Recycled Matter . | . . . . . . Retrieved Matter . | . . . . . . Retrieved Components . | . . . . . . Parts Scanalyzed . | . . . . . . Part Schematics Acquired . | . . . . . . Parts Damaged . | . . . . . . Bothacking | -11 -10 -10 -9 -8 -8 ------------ Run | Yrd Mat Min Mat Mat Sto Used RIF Installer . | . . . . . . Robots Hacked . | . . . . . . Non-combat . | . . . . . . Combat . | . . . . . . Robot Hacks Applied . | . . . . . . Relay Couplers Released . | . . . . . . Fabnet Peak Effective % . | . . . . . . Robots Rewired . | . . . . . . Allies Hacked . | . . . . . . Hacks Repelled . | . . . . . . Allies | -11 -10 -10 -9 -8 -8 -------- Run | Yrd Mat Min Mat Mat Sto Total Allies 3 | . . 1 . . 2 Largest Group 2 | . . . 1 . 2 Highest-Rated Group 62 | . . . 31 . 62 Highest-Rated Ally 31 | . . . 31 . 31 Total Orders . | . . . . . . Ally Attacks 33 | . . . 8 . 25 Total Damage 521 | . . . 102 . 419 Kills 8 | . . . 4 . 4 Allies Corrupted . | . . . . . . Allies Melted . | . . . . . . Intel | -11 -10 -10 -9 -8 -8 ------- Run | Yrd Mat Min Mat Mat Sto Robot Analysis Total . | . . . . . . Derelict Logs Recovered . | . . . . . . Drone Launches . | . . . . . . Drone Recoveries . | . . . . . . Exploration | -11 -10 -10 -9 -8 -8 ------------- Run | Yrd Mat Min Mat Mat Sto Turns Passed 3706 | 88 134 495 798 298 1893 Spaces Moved 1057 | 50 103 374 182 72 276 Core 32 | 25 . . . . 7 Treads 288 | . . . 153 . 135 Legs 734 | 25 103 374 29 72 131 Wheels . | . . . . . . Hover 3 | . . . . . 3 Flight . | . . . . . . Fastest Speed 50 | 50 120 120 120 400 240 Average Speed 281 | 137 120 120 364 400 499 Slowest Speed 2650 | 250 120 120 400 400 2650 Overloaded Moves . | . . . . . . Propulsion Burnouts . | . . . . . . Robots Hopped . | . . . . . . Cave-ins Triggered . | . . . . . . Exploration Rate (%) 29 | 4 18 72 26 9 46 Regions Visited 5 Branch Regions 2 Pre-discovered Areas . | . . . . . . Known Exits Taken 5 | 1 1 1 1 1 . Unknown Exits Taken . | . . . . . . Scrap Searched . | . . . . . . Spaces Dug 7 | . 7 . . . . Terrain Destroyed 137 | . 7 11 . . 119 Melee . | . . . . . . Projectile . | . . . . . . AOE 137 | . 7 11 . . 119 Terrain Rammed . | . . . . . . Walls Destroyed . | . . . . . . Machines Disabled . | . . . . . . Actions | -11 -10 -10 -9 -8 -8 --------- Run | Yrd Mat Min Mat Mat Sto Total 1499 | 69 110 401 259 79 581 Wait 141 | . . 7 20 . 114 Move 1052 | 49 102 373 181 71 276 Hop . | . . . . . . Pick Up 59 | 13 4 2 9 2 29 Fast Attach 2 | 1 . . 1 . . Attach 33 | 6 1 . 2 3 21 Detach . | . . . . . . Swap 23 | . 2 3 5 . 13 Drop 19 | . . 2 8 . 9 Fire 160 | . 1 13 32 3 111 Melee . | . . . . . . Ram . | . . . . . . Kick 3 | . . 1 . . 2 Crush 5 | . . . 1 . 4 Escape Stasis 2 | . . . . . 2 Rewire . | . . . . . . Trap . | . . . . . . Miscellaneous . | . . . . . . Route ------- -11/Scrapyard -10/Materials -10/Mines -9/Materials -8/Materials (discovered 2 exits: *Sto x2) -8/Storage History --------- Turn | Location | Event 8 | -11/Scrapyard | Identified exit to Materials 8 | -11/Scrapyard | Discovered exit to Materials (range 15) 89 | -11/Scrapyard | Entered Materials 89 | -10/Materials | Evolved 1 slot: Utility x1 179 | -10/Materials | Identified exit to Mines 179 | -10/Materials | Discovered exit to Mines (range 10) 223 | -10/Materials | Entered Mines 305 | -10/Mines | Build established: Hacker-Mutant 481 | -10/Mines | A weapon hastily lodged in a ceiling crevice suddenly fell to the ground 705 | -10/Mines | Identified exit to Materials 705 | -10/Mines | Discovered exit to Materials (range 9) 713 | -10/Mines | Received a Mining Laser from a helpful Derelict 718 | -10/Mines | Entered Materials 718 | -9/Materials | Accompanied by 1 ally 718 | -9/Materials | Evolved 2 slots: Propulsion x1, Utility x1 1035 | -9/Materials | Build established: Hauler-Mutant 1392 | -9/Materials | Identified exit to Materials 1392 | -9/Materials | Discovered exit to Materials (range 9) 1516 | -9/Materials | Entered another Materials area 1516 | -8/Materials | Evolved 2 slots: Propulsion x2 1603 | -8/Materials | Identified exit to Storage 1814 | -8/Materials | Entered Storage 2189 | -8/Storage | Garrison activated, responded to threat 2425 | -8/Storage | Met a pair of Derelict thieves 2534 | -8/Storage | Garrison activated, responded to threat 2708 | -8/Storage | Lost 3 parts (2n1w) 2910 | -8/Storage | Garrison activated, responded to threat 3056 | -8/Storage | Core integrity fell below 50% 3078 | -8/Storage | Lost 4 parts (3n1w) 3660 | -8/Storage | Core integrity fell below 20% 3707 | -8/Storage | Destroyed by Y-45 Defender with Heavy Assault Rifle Last Messages --------------- nearby ally. 03660_ K-01 Serf collects debris. 03661_ Acquired Hover Unit. 03662_ Terminal disabled. 03667_ The unstable cave ceiling collapses. 03669_ K-01 Serf collects debris. 03673_ QTYU&O2H#1N#UWY5VQNCMFL%2%IPPDK,PO 03674_ W-25 Informer destroyed. 03675_ Lgt. Treads destroyed. 03676_ Destroyed Lgt. Nuclear Core. 03678_ G-47 Trooper destroyed. 03679_ Grenade Launcher destroyed. 03680_ The unstable cave ceiling collapses. 03680_ Dropped ECM Suite. 03685_ Dropped Lrg. Matter Pod. 03685_ Extracted 150 matter. 03692_ B|H 03704_ Lgt. Armor Plating destroyed. 03706_ U-05 Engineer lays Concrete. Map ----- +----------------------------------------------------+ | | | | | | | | | | | | | | | | | | | | | | | | | | | | | | | | | | | | | | | | | | | | | ###?????????????????????????# # ###??????????????? | | # ###????????????????##### # ##?????????????? | | ### #####????????###### ! T#####?????????? | | # #????????# @ g^^ ???????? | | # #?????#### *% % ^ ???????? | | ######### u ^^ ???????? | | ## ### # ######?????????? | | + #####+### ###### Y ???????????? | | ## ## ## #?????## #??????????? | | =## ## ## #??????? """"" #??????????? | | ## ## ##+#???????? """"" #??????????? | | ####+### # #??????????? """""?????????????? | | # #???????????? ???????????????? | | + #???????????? ???????????????? | | ####### # #????????????? ????????????????? | | %% #???## ## #??????????????????????????????? | | ###### ## #??????????????????????????????? | | # ## #??????????????????????????????? | | "" # # ## #??????????????????????????????? | | "" # # ## #??????????????????????????????? | | + ########??????????????????????????????? | | "" # + ?????????????????????????????? | | "" # ##? ?????????????????????????????????? | | "" % # ## "??????????????????????????????????? | | # "??????????????????????????????????? | | ########= # "??????????????????????????????????? | | % # "??????????????????????????????????? | | # """ ???????????????????????????????? | +----------------------------------------------------+ Best States ------------- Heat Dissipation 31 Energy Generation 14 Energy Capacity 265 Matter Stores 300 Matter Capacity 300 Sight Range 16 Terrain Scan Range 14 Terrain Scan Density 10 ECM Strength 2 Armor Coverage 150 Resistance: KI 35 Resistance: TH 35 Resistance: EX 35 Resistance: EM 35 Resistance: I 35 Resistance: S 35 Resistance: P 35 Evasion (%) 55 Recoil Reduction 5 Offensive Hacking 20 Item Schematics ----------------- None Robot Schematics ------------------ None Fabricated ------------ Nothing Alien Tech Used ----------------- None Achievements -------------- None Challenges ------------ None Game ------ Seed SmartbombServoFacilitator Manual? 0 Play Time 00:39:23 Cumulative 15.6 hours Start 2024.10.23 @ 08:47:37 End 2024.10.23 @ 12:03:34 Sessions 3 Manual Loads 0 Difficulty Explorer Special Mode None Game No. 8 Rogue 0 Adventurer 0 Explorer 8 Win Type - Total 0 Types 0/0/0/0/0/0/0/0/0 Lore% 6 Gallery% 26 Achievement% 27 Wizard Run 0 Options --------- Layout 1 ASCII 0 Keyboard 0 Movement Mouse Keybinds 0 Fullscreen 2 Font 32/Cog Map View 50x35 Zoom Use 0% Tactical HUD 1 Map Filters NONE Filters NONE Steam 1 RUN: 0da8219f-0fc0-4f4e-bfdc-1c257aa1210b